Cogmind - Beta 12 @@@ ROGUE MODE // 2023.03.24 @ 16:03:27 Player: Infomantis Result: Destroyed by S-43 Plague with Heavy Machine Gun Performance ------------- Evolutions (9) 4500 Regions Visited (25) 5000 Robots Destroyed (165) 825 Value Destroyed (9940) 9940 Prototype IDs (10) 200 Alien Tech Used (0) 0 Bonus (7097) 7097 TOTAL SCORE: 27562 Bonus ------- High Alert Combat Kills 907 Follower Combat Kills 2790 Entered Garrisons 1200 Used RIF Installer 3000 Friendly Fire -800 Cogmind --------- Core Integrity 0/1600 Matter 26/300 Energy 100/100 System Corruption 8% Temperature Cool (0) Movement Core (50) Location -1/Access Parts ------- > --- POWER (2) -------- (None) > --- PROPULSION (8) --- (None) > --- UTILITY (11) ----- Machine Analyzer Core Analyzer System Shield > --- WEAPON (4) ------- (None) > --- INVENTORY (5) ---- Hacking Suite Hacking Suite Peak State ------------ > --- POWER ------------ Light Quantum Reactor Multi-FC Engine > --- PROPULSION ------- Centrium Leg HC-Combat Exoskeleton > --- UTILITY ---------- Armored Scrap Engine Advanced Heat Sink Advanced Cooling System High-capacity Storage Unit Machine Analyzer Advanced Cloaking Device Relay Coupler [NC] Relay Coupler [Sentry] > --- WEAPON ----------- Enhanced Nova Cannon Hyp. Accelerated Gauss Construct/C Hyp. KE Helical Construct/C > --- INVENTORY -------- Advanced Cooling System Structural Scanner Improved Transmission Jammer Improved Transmission Jammer Improved Medium Armor Plating Relay Coupler [Swarmer] Relay Coupler [Brawler] Relay Coupler [Sentry] Relay Coupler [Sentry] Relay Coupler [Heavy] Relay Coupler [Behemoth] Relay Coupler [Behemoth] Dynamic Insulation System Advanced Trap Extractor Variable Charge Gun Missile Launcher Advanced Datajack Advanced Datajack Improved Remote Datajack Improved Remote Datajack [Rating: 131] Favorites ----------- Power Constructs Engine Constructs Power Core Micro Nuclear Core Reactor Light Antimatter Reactor Propulsion Constructs Treads Light Treads Leg Constructs Wheel Compact Wheel Flight Unit Impulse Thruster Array Utility Armored Scrap Engine Device Armored Scrap Engine Storage Large Storage Unit Processor Machine Analyzer Hackware Relay Coupler [NC] Protection Improved Medium Armor Plating Weapon Constructs Energy Gun Particle Gun Energy Cannon Phase Cannon Ballistic Gun Constructs Ballistic Cannon Constructs Launcher Improved Grenade Launcher Special Weapon Improved Remote Datajack Slashing Weapon Axe Special Melee Weapon Improved Datajack Build | -11 -10 -10 -10 -9 -8 -8 -8 -8 -8 -8 -6 -6 -5 -5 -5 -5 -4 -4 -4 -4 -4 -3 -3 -2 -1 ------- Run | Jun Mat Min Exi Min Mat Gar Mat Sto Gar Rec Fac Gar Fac Was Fac Gar Fac Was Fac Gar Arm Res Gar Res Acc Slots Evolved 18 | . . . . . 4 . . . . . 4 . 2 . . . 2 . . . . 2 . 2 2 Power 1 | . . . . . . . . . . . . . . . . . 1 . . . . . . . . Propulsion 6 | . . . . . 1 . . . . . 1 . . . . . 1 . . . . . . 1 2 Utility 9 | . . . . . 2 . . . . . 3 . 2 . . . . . . . . 1 . 1 . Weapon 2 | . . . . . 1 . . . . . . . . . . . . . . . . 1 . . . Parts Attached 262 | 8 4 4 1 2 4 31 1 25 18 3 4 10 2 3 9 10 12 4 13 19 16 14 8 11 26 Power 15 | 1 2 1 . . . 2 . . 1 1 . . . . . . . . . . 1 . 2 1 3 Engine 5 | 1 2 1 . . . . . . . 1 . . . . . . . . . . . . . . . Core 3 | . . . . . . 2 . . 1 . . . . . . . . . . . . . . . . Reactor 7 | . . . . . . . . . . . . . . . . . . . . . 1 . 2 1 3 Propulsion 42 | 2 . 1 . . 1 8 . 7 2 1 . . . . . . 1 . . . 1 . 2 2 14 Treads 12 | 2 . 1 . . . 2 . 6 1 . . . . . . . . . . . . . . . . Leg 12 | . . . . . 1 5 . 1 1 1 . . . . . . 1 . . . 1 . . 1 . Wheel 2 | . . . . . . 1 . . . . . . . . . . . . . . . . . 1 . Hover . | . . . . . . . . . . . . . . . . . . . . . . . . . . Flight 16 | . . . . . . . . . . . . . . . . . . . . . . . 2 . 14 Utility 97 | 2 1 . 1 2 2 13 1 7 3 1 1 5 2 3 4 8 5 3 . 12 6 8 1 2 4 Device 48 | 1 1 . . 2 1 8 1 4 1 1 . 1 2 2 2 4 3 1 . 5 4 2 1 . 1 Storage 4 | 1 . . 1 . . . . . . . . . . . 1 . . . . . . . . . 1 Processor 3 | . . . . . . . . . . . 1 . . . . . . 1 . . . . . . 1 Hackware 24 | . . . . . . . . . 2 . . 3 . 1 1 1 1 1 . 5 2 5 . 2 . Protection 18 | . . . . . 1 5 . 3 . . . 1 . . . 3 1 . . 2 . 1 . . 1 Artifact . | . . . . . . . . . . . . . . . . . . . . . . . . . . Weapon 108 | 3 1 2 . . 1 8 . 11 12 . 3 5 . . 5 2 6 1 13 7 8 6 3 6 5 Energy Gun 14 | 1 . 1 . . . 4 . 3 2 . . . . . . . . . . 2 . 1 . . . Energy Cannon 9 | . . . . . . . . . . . . . . . 1 . . . . . 2 2 . 2 2 Ballistic Gun 17 | 2 1 1 . . 1 . . 3 6 . 1 1 . . . 1 . . . . . . . . . Ballistic Cannon 12 | . . . . . . . . . . . . . . . . . 4 . 7 1 . . . . . Launcher 11 | . . . . . . 2 . 3 1 . 1 . . . 1 . . . . 1 . 1 . . 1 Special Weapon 21 | . . . . . . . . . . . . . . . . . 2 1 6 2 3 1 2 2 2 Impact Weapon . | . . . . . . . . . . . . . . . . . . . . . . . . . . Slashing Weapon 6 | . . . . . . 2 . 1 . . . 2 . . 1 . . . . . . . . . . Piercing Weapon . | . . . . . . . . . . . . . . . . . . . . . . . . . . Special Melee Weapon 18 | . . . . . . . . 1 3 . 1 2 . . 2 1 . . . 1 3 1 1 2 . Unidentified Prototypes 2 | . . . . . . . . . . . . . . . . . . . . . . . . . 2 Corrupted Parts 1 | . . . . 1 . . . . . . . . . . . . . . . . . . . . . System Corruption 4 | . . . . 4 . . . . . . . . . . . . . . . . . . . . . Parts Lost 81 | . . . . . . 8 . 7 4 . 1 . . . . . 1 . 3 5 2 14 8 5 23 Power 9 | . . . . . . 1 . . 1 . . . . . . . . . . 1 1 1 1 . 3 Propulsion 29 | . . . . . . 4 . 3 1 . . . . . . . . . . . 1 1 3 3 13 Utility 25 | . . . . . . 2 . 2 . . . . . . . . 1 . 2 2 . 6 3 1 6 Weapon 18 | . . . . . . 1 . 2 2 . 1 . . . . . . . 1 2 . 6 1 1 1 Highest Loss Streak 13 | . . . . . . 3 . 4 4 . 1 . . . . . 1 . 2 3 1 13 8 5 11 To Critical Strikes 1 | . . . . . . . . . . . . . . . . . . . . . 1 . . . . Average Slot Usage (%) 77 | . 99 100 100 100 94 98 100 98 97 71 55 66 72 70 71 71 65 62 63 63 67 64 55 40 32 Engine 3 | . 13 14 14 14 9 2 . . . 4 6 . . . . . 2 . . . . 1 . . . Core 3 | . . . . . . 6 9 9 9 4 . 5 5 1 . 3 3 . . 3 . 2 . . . Reactor 1 | . . . . . . . . . . . . . . 3 5 . 1 5 5 1 4 . 3 . 2 Treads 8 | . 28 28 28 28 18 9 . 25 23 9 5 2 . 1 3 . 1 . . . 1 . 2 . . Leg 2 | . . . . . 7 12 27 . 1 6 . . . . . 1 . . . 4 4 . . 4 . Flight 1 | . . . . . . . . . . . . 1 5 3 . 2 1 5 5 . . 2 1 . 10 Device 13 | . 14 14 14 14 16 13 9 17 9 17 13 12 13 17 18 11 13 8 10 17 17 16 8 . . Storage 7 | . 14 14 14 14 9 9 9 9 9 9 6 6 5 5 5 5 5 5 5 5 5 3 . . 1 Processor 2 | . . . . . . . . . . . 6 6 5 5 5 5 5 8 5 5 5 4 4 4 5 Hackware 7 | . . . . . . . . . 9 . . 5 11 11 15 17 11 13 15 10 11 9 26 21 9 Protection 4 | . . . . . 7 13 18 9 9 . . 5 5 5 . 4 5 5 5 2 . 3 . . . Energy Gun 5 | . . 11 14 14 9 10 27 18 5 8 6 3 5 5 1 1 . . . 2 . . . . . Energy Cannon 2 | . . . . . . . . . . . . . . . 5 6 5 5 5 2 1 5 . 1 . Ballistic Gun 5 | . 28 16 14 14 16 11 . 5 9 2 6 3 . . 2 2 . . . . . . . . . Ballistic Cannon 2 | . . . . . . . . . . 6 . . . . . . 3 1 4 5 10 9 3 . . Slashing Weapon 1 | . . . . . . 5 . 1 9 1 . 4 5 . . . . . . . . . . . . Naked Turns . | . . . . . . . . . . . . . . . . . . . . . . . . . . Heaviest Build 101 | 13 13 15 30 30 40 48 46 59 61 58 38 50 47 47 67 75 89 89 88 101 94 98 48 14 60 Greatest Support 138 | 40 40 40 40 40 40 53 53 66 66 64 54 83 76 92 92 53 88 75 57 110 138 138 52 28 63 Greatest Overweight (x) 4 | . . . . . . 2 . 2 1 2 . . . . 1 2 2 1 1 1 . 1 . 4 1 Average Overweight (x) . | . . . . . . . . . . . . . . . . 1 . 1 1 . . . . . . Largest Inventory Capacity 20 | 8 8 8 15 15 15 15 15 15 15 15 15 15 15 15 20 20 20 20 20 20 20 20 5 5 20 Average Capacity 15 | 7 8 8 9 15 15 15 15 15 15 15 15 15 15 15 17 20 20 20 20 20 20 18 5 5 10 Most Carried 20 | 7 8 8 9 15 15 15 15 15 15 15 13 15 14 15 16 20 20 19 20 20 20 20 5 5 11 Average Carried 14 | 5 7 7 8 13 13 14 14 14 13 14 12 13 13 14 15 18 19 18 19 19 19 18 4 4 4 Final Capacity 20 | 8 8 8 15 15 15 15 15 15 15 15 15 15 15 15 20 20 20 20 20 20 20 5 5 5 5 Final Carried 20 | 7 8 8 9 15 15 14 15 10 15 14 12 14 13 15 16 19 19 19 19 19 20 5 5 5 2 Scrap Engine Consumption 230 | . . . . . . . . . . 31 3 16 2 10 17 44 19 1 15 26 30 12 4 . . Constructs Created 13 | . . . . . . . . . . 5 . . . . . 1 . . . 3 2 . 2 . . Constructs Modified 79 | . . . . . . . . . . 5 1 9 . 6 6 15 7 2 6 7 3 9 3 . . Class Distribution -------------------- 36% | Botlord-Construct 19% | Mutant 11% | Bothacker-Mutant 10% | Botlord-Mutant 7% | Scavenger-Tank 7% | Scavenger-Mutant 4% | Bothacker-Construct Dominant Class ---------------- Mutant | -10/Materials Mutant | -10/Mines Mutant | -10/Exiles Mutant | -9/Mines Scavenger-Tank | -8/Materials Scavenger-Mutant | -8/Garrison Scavenger-Tank | -8/Materials Scavenger-Tank | -8/Storage Bothacker-Mutant | -8/Garrison Bothacker-Mutant | -8/Recycling Bothacker-Construct | -6/Factory Botlord-Construct | -6/Garrison Botlord-Mutant | -5/Factory Botlord-Mutant | -5/Waste Botlord-Mutant | -5/Factory Botlord-Construct | -5/Garrison Botlord-Construct | -4/Factory Botlord-Construct | -4/Waste Botlord-Construct | -4/Factory Botlord-Construct | -4/Garrison Botlord-Construct | -4/Armory Botlord-Construct | -3/Research Botlord-Mutant | -3/Garrison Bothacker-Mutant | -2/Research Hacker-Mutant | -1/Access Resources | -11 -10 -10 -10 -9 -8 -8 -8 -8 -8 -8 -6 -6 -5 -5 -5 -5 -4 -4 -4 -4 -4 -3 -3 -2 -1 ----------- Run | Jun Mat Min Exi Min Mat Gar Mat Sto Gar Rec Fac Gar Fac Was Fac Gar Fac Was Fac Gar Arm Res Gar Res Acc Matter Collected 5121 | 430 120 65 . 16 . 486 6 423 475 118 10 184 26 54 100 153 238 271 340 822 300 394 90 . . Remotely . | . . . . . . . . . . . . . . . . . . . . . . . . . . Salvage Created 6881 | 306 143 26 . 108 . 643 49 938 359 353 37 . 26 . 35 363 954 . 615 1063 202 661 . . . Parts 351 | 26 8 3 . 8 . 39 3 51 29 10 3 . 2 . 1 16 57 . 27 37 6 25 . . . Haulers Intercepted 3 | . 1 . . . . . . 2 . . . . . . . . . . . . . . . . . Recyclers Shooed 3 | . . . . . . . 1 . . 1 . . . . 1 . . . . . . . . . . Parts Field Recycled . | . . . . . . . . . . . . . . . . . . . . . . . . . . Retrieved Matter . | . . . . . . . . . . . . . . . . . . . . . . . . . . Parts Self-Destructed . | . . . . . . . . . . . . . . . . . . . . . . . . . . Prevented . | . . . . . . . . . . . . . . . . . . . . . . . . . . Kills | -11 -10 -10 -10 -9 -8 -8 -8 -8 -8 -8 -6 -6 -5 -5 -5 -5 -4 -4 -4 -4 -4 -3 -3 -2 -1 ------- Run | Jun Mat Min Exi Min Mat Gar Mat Sto Gar Rec Fac Gar Fac Was Fac Gar Fac Was Fac Gar Arm Res Gar Res Acc Combat Hostiles Destroyed 127 | . 2 2 . 3 . 17 1 26 13 1 3 . . . 1 5 12 . 10 18 2 11 . . . Melee 10 | . . . . . . 8 . . 2 . . . . . . . . . . . . . . . . Guns 39 | . 2 2 . 3 . 6 1 13 7 1 . . . . . 3 . . . 1 . . . . . Cannons 47 | . . . . . . . . . . . . . . . 1 1 11 . 9 13 2 10 . . . AOE 29 | . . . . . . 3 . 12 4 . 3 . . . . 1 . . 1 4 . 1 . . . Classes Destroyed 18 | 3 2 1 . . . 3 1 3 . . . . 1 . . 1 1 . . . . 2 . . . Worker 4 | 1 . . . . . . . . . . . . . . . . 1 . . . . 2 . . . Builder 4 | . . . . . . . . 2 . . . . . . . . 2 . . . . . . . . Tunneler 9 | 9 . . . . . . . . . . . . . . . . . . . . . . . . . Hauler 3 | . 1 . . . . . . 2 . . . . . . . . . . . . . . . . . Recycler 9 | 1 . . . 1 . . . 1 . 4 . . . . . . 1 . 1 . . . . . . Mechanic 1 | . . . . . . . . 1 . . . . . . . . . . . . . . . . . Operator 1 | . . . . . . . . . . . . . . . . . 1 . . . . . . . . Watcher 4 | . . . . . . . . . . . . . 1 . . . 2 . . . 1 . . . . Swarmer 24 | . . 2 . 3 . 5 . 2 6 . 3 . . . . 3 . . . . . . . . . Grunt 45 | . 2 . . . . 7 . 14 3 . . . . . . 1 1 . 3 10 2 2 . . . Brawler 3 | . . . . . . 1 . 1 . . . . . . . . . . . 1 . . . . . Duelist 3 | . . . . . . 1 . . . . . . . . . . . . 1 1 . . . . . Sentry 19 | . . . . . . . 1 8 2 1 . . . . 1 . 1 . 2 1 . 2 . . . Specialist 4 | . . . . . . . . . . . . . . . . . . . . . . 4 . . . Hunter 13 | . . . . . . . . 1 2 . . . . . . . 4 . 1 4 . 1 . . . Programmer 16 | . . . . . . 3 . . . . . . . . . . 5 . 3 3 . 2 . . . Behemoth 2 | . . . . . . . . . . . . . . . . 1 1 . . . . . . . . Striker 1 | . . . . . . . . . . . . . . . . . . . . . . 1 . . . Best Kill Streak 9 | 3 2 2 . 4 . 3 1 9 7 2 3 . 1 . 1 2 5 . 3 7 1 5 . . . Combat Bots Only 7 | . 2 2 . 3 . 3 1 6 7 1 3 . . . 1 2 3 . 3 7 1 3 . . . Max Kills in Single Turn 3 | 1 1 1 . 1 . 3 1 3 2 1 3 . 1 . 1 1 2 . 1 2 1 3 . . . Gunslinging . | . . . . . . . . . . . . . . . . . . . . . . . . . . Exploded 3 | . . . . . . 3 . 3 2 . 3 . . . . 1 . . 1 2 . 1 . . . Melee 1 | . . . . . . 1 . . 1 . . . . . . . . . . . . . . . . Uniques/NPCs Destroyed . | . . . . . . . . . . . . . . . . . . . . . . . . . . Combat | -11 -10 -10 -10 -9 -8 -8 -8 -8 -8 -8 -6 -6 -5 -5 -5 -5 -4 -4 -4 -4 -4 -3 -3 -2 -1 -------- Run | Jun Mat Min Exi Min Mat Gar Mat Sto Gar Rec Fac Gar Fac Was Fac Gar Fac Was Fac Gar Arm Res Gar Res Acc Damage Taken 20989 | . 247 126 . 70 . 1258 28 1660 1016 165 487 249 201 18 67 898 1493 16 899 1903 575 3679 1846 828 3260 Core 3876 | . 10 17 . 30 . 170 . 162 68 15 113 14 26 . 15 104 177 . 95 126 84 502 373 154 1621 Absorbed by Shields 133 | . . . . . . 35 . . . . . 62 . . . . . . . . . . 36 . . Redirected to Shielding 117 | . . . . . . 10 . . . . . . . . . . . . . . . . . . 107 Regen/Repaired (Parts) 4325 | . . . . . . . . . . 17 15 320 . 286 59 680 969 83 286 561 264 418 367 . . Core Remaining (%) 68 | 100 . . . 77 . . . . . 24 . 85 . . . 85 . . . . 58 . 32 89 . Volleys Fired 517 | 25 15 4 . 6 . 46 2 73 31 21 3 11 2 12 8 29 39 7 41 64 26 32 3 14 3 Largest 4 | 2 2 2 . 2 . 3 3 3 2 2 1 2 1 1 2 3 2 1 2 3 3 4 1 1 1 Hottest 310 | 40 40 40 . 85 . 199 199 199 85 110 36 74 35 35 109 176 160 7 151 193 230 310 53 120 120 Shots Fired 987 | 50 30 8 . 12 . 87 7 151 54 44 3 17 2 12 13 70 75 7 70 105 46 104 3 14 3 Gun 478 | 50 30 8 . 12 . 84 7 137 51 23 . 17 2 12 4 23 1 . . 17 . . . . . Cannon 442 | . . . . . . . . . . 21 . . . . 9 47 70 . 65 79 36 100 1 11 3 Launcher 32 | . . . . . . 3 . 14 3 . 3 . . . . . . . . 5 . 4 . . . Special 35 | . . . . . . . . . . . . . . . . . 4 7 5 4 10 . 2 3 . Kinetic 471 | 50 30 8 . 6 . 37 . 30 41 21 . 6 . . 2 7 35 . 34 60 29 74 1 . . Thermal 449 | . . . . 6 . 47 7 107 10 23 . 11 2 12 11 63 36 . 31 36 7 26 . 11 3 Explosive 32 | . . . . . . 3 . 14 3 . 3 . . . . . . . . 5 . 4 . . . Electromagnetic . | . . . . . . . . . . . . . . . . . . . . . . . . . . Robot Hit Streak 11 | 8 4 3 . 2 . 9 7 10 6 7 . 2 1 7 2 9 10 4 11 9 3 9 3 4 . Robot Miss Streak 5 | 2 2 1 . 1 . 4 1 2 4 3 . 4 . 1 5 3 5 1 3 2 3 3 1 . . Penetration Max 1 | . . . . . . . . . . . . . . . . . . . . . . 1 . . . Secondary Targets 9 | . 1 1 . 1 . 1 . 3 2 . . . . . . . . . . . . . . . . Max Gunslinging Chain 1 | . 1 1 . 1 . 1 . 1 1 . . . . . . . . . . . . . . . . Shots Hit Robots 669 | 28 21 5 . 6 . 75 3 104 47 27 3 7 3 15 7 48 46 6 46 67 31 64 3 7 . Core Hits 291 | 12 7 2 . 3 . 31 3 59 21 9 6 3 1 1 3 14 23 . 19 40 5 28 1 . . Critical Kills 5 | 1 . . . . . . . . . . . . . . . . 1 . . . . 3 . . . Critical Parts Destroyed 4 | . 1 . . . . . . . . . . . . . . . . . . . . 3 . . . Critical Strikes 27 | 1 1 . . . . 3 . 5 2 . . . . . . . 1 . 1 3 1 9 . . . Burn 7 | . . . . . . 2 . 5 . . . . . . . . . . . . . . . . . Meltdown 1 | . . . . . . . . . . . . . . . . . 1 . . . . . . . . Destroy 10 | 1 1 . . . . . . . . . . . . . . . . . . . . 8 . . . Blast 6 | . . . . . . . . . . . . . . . . . . . 1 3 1 1 . . . Sever 3 | . . . . . . 1 . . 2 . . . . . . . . . . . . . . . . Melee Attacks 136 | . . . . . . 58 . . 28 . 3 10 2 8 3 5 . . . 3 10 . 2 4 . Impact . | . . . . . . . . . . . . . . . . . . . . . . . . . . Slashing 81 | . . . . . . 58 . . 15 . . 6 2 . . . . . . . . . . . . Piercing . | . . . . . . . . . . . . . . . . . . . . . . . . . . Sneak Attacks 30 | . . . . . . . . . 9 . 3 . . 1 3 . . . . . 10 . . 4 . Combat Hostiles 4 | . . . . . . . . . . . 3 . . 1 . . . . . . . . . . . Follow-up Attacks . | . . . . . . . . . . . . . . . . . . . . . . . . . . Damage Inflicted 21078 | 367 282 50 . 72 . 1908 54 3068 956 458 528 81 86 224 174 1592 2489 . 1857 3244 569 3007 10 2 . Guns 4479 | 367 282 50 . 71 . 553 45 1484 427 226 . 81 18 224 64 380 18 . . 189 . . . . . Cannons 10490 | . . . . . . . . . . 213 . . . . 110 963 2390 . 1785 2272 569 2188 . . . Explosions 4720 | . . . . . . 311 . 1584 300 . 528 . . . . 249 81 . 72 783 . 812 . . . Melee 1341 | . . . . . . 1044 . . 229 . . . 68 . . . . . . . . . . . . Ramming 48 | . . . . 1 . . 9 . . 19 . . . . . . . . . . . 7 10 2 . Kinetic 6585 | 367 282 50 . 36 . 162 . 203 320 213 . 53 . . 42 98 785 . 875 1299 310 1490 . . . Thermal 8705 | . . . . 35 . 391 45 1281 107 226 . 28 18 224 132 1494 1623 . 982 1162 259 698 . . . Explosive 4318 | . . . . . . 311 . 1584 300 . 528 . . . . . . . . 783 . 812 . . . Electromagnetic 81 | . . . . . . . . . . . . . . . . . 81 . . . . . . . . Impact . | . . . . . . . . . . . . . . . . . . . . . . . . . . Slashing 1341 | . . . . . . 1044 . . 229 . . . 68 . . . . . . . . . . . . Piercing . | . . . . . . . . . . . . . . . . . . . . . . . . . . Highest Corruption 24 | . . . . 4 . 12 12 12 12 12 . . 1 1 1 1 3 6 8 24 24 20 22 . 8 Average Corruption 9 | . . . . 4 . 10 12 12 12 12 . . 1 1 1 1 2 4 7 21 24 7 20 . 6 Corruption Purged . | . . . . . . . . . . . . . . . . . . . . . . . . . . Corruption Blocked 12 | . . . . . . . . . . . . . . . . . . 12 . . . . . . . Effects 299 | . . . . . . 36 5 30 31 45 . . . 1 4 12 11 4 29 46 23 9 7 . 6 Message Errors 61 | . . . . . . 9 1 4 4 10 . . . . 1 2 1 3 8 10 4 1 2 . 1 Matter Fused 81 | . . . . . . 10 1 6 4 14 . . . . 2 4 4 . 5 18 7 2 2 . 2 Heat Flow Errors 28 | . . . . . . 3 1 6 4 4 . . . . 1 2 . . 2 1 2 1 1 . . Energy Discharges 28 | . . . . . . 3 . 2 6 3 . . . . . . . . 3 6 1 2 1 . 1 Parts Rejected 2 | . . . . . . . . . . 1 . . . . . . 1 . . . . . . . . Parts Fused 3 | . . . . . . 1 1 . 1 . . . . . . . . . . . . . . . . Data Loss (minor) 38 | . . . . . . 5 . 2 5 7 . . . . . 3 2 . 4 4 4 1 . . 1 Data Loss (major) 18 | . . . . . . 3 . 2 . 2 . . . 1 . . 1 . 3 3 2 . 1 . . Misfires 10 | . . . . . . . 1 1 2 2 . . . . . 1 1 . . 1 1 . . . . Alerts 14 | . . . . . . 2 . 2 2 1 . . . . . . 1 1 2 1 1 . . . 1 Misdirections 5 | . . . . . . . . 1 2 1 . . . . . . . . . . . 1 . . . Weapon Failures 11 | . . . . . . . . 4 1 . . . . . . . . . 2 2 1 1 . . . Overload Shots . | . . . . . . . . . . . . . . . . . . . . . . . . . . Overflow Damage 696 | . . . . . . 65 . 53 14 8 . . 16 . 2 7 189 . 72 167 . 103 . . . Projectiles 487 | . . . . . . . . . . 8 . . . . 2 7 189 . 72 164 . 45 . . . Explosions 116 | . . . . . . 2 . 53 . . . . . . . . . . . 3 . 58 . . . Melee 93 | . . . . . . 63 . . 14 . . . 16 . . . . . . . . . . . . Knockbacks 41 | . . . . . . . . . . 3 . . . . . . 9 . 6 10 3 10 . . . Impact . | . . . . . . . . . . . . . . . . . . . . . . . . . . Kinetic 40 | . . . . . . . . . . 3 . . . . . . 8 . 6 10 3 10 . . . Secondary 1 | . . . . . . . . . . . . . . . . . 1 . . . . . . . . Self-Inflicted Damage 107 | . . . . . . . . 32 . . . . . . . 29 26 . . 12 . 3 5 . . Shots 4 | . . . . . . . . 1 . . . . . . . 1 1 . . 1 . . . . . Rammed 8 | . . 1 . . . . . . . 3 . . . . . . . . . . . 2 2 . . Targets Rammed 12 | . . 1 . 1 . . 2 . . 3 . . . . . . . . . . . 2 2 1 . Kicked 3 | . . . . . . . 2 . . . . . . . . . . . . . . . . 1 . Crushed 1 | . . . . 1 . . . . . . . . . . . . . . . . . . . . . Highest Temperature 436 | . 10 9 . 74 . 264 179 436 179 265 . 10 7 . 67 185 140 . 76 272 132 104 236 93 128 Average Temperature 69 | . 4 9 . 37 . 76 61 110 55 134 . 9 7 . 37 46 32 . 29 48 77 55 106 25 53 Received Heat Transfer 2929 | . 144 66 . . . 357 9 801 234 45 . 114 . 9 . 183 9 . 85 335 18 183 184 81 72 Effects 3 | . . . . . . . . 2 . . . . . . . . . . . . . . 1 . . Shutdowns 1 | . . . . . . . . 1 . . . . . . . . . . . . . . . . . Interference 1 | . . . . . . . . . . . . . . . . . . . . . . . 1 . . Matter Decay 1 | . . . . . . . . 1 . . . . . . . . . . . . . . . . . Siege Activations . | . . . . . . . . . . . . . . . . . . . . . . . . . . Robots Corrupted . | . . . . . . . . . . . . . . . . . . . . . . . . . . Combat Hostiles . | . . . . . . . . . . . . . . . . . . . . . . . . . . Parts Fried 4 | . . . . . . 1 . . . . . . . . . . 3 . . . . . . . . Impact Corruptions . | . . . . . . . . . . . . . . . . . . . . . . . . . . Robots Melted 2 | . . . . . . . . 1 . . . . . . . . 1 . . . . . . . . Combat Hostiles 2 | . . . . . . . . 1 . . . . . . . . 1 . . . . . . . . Parts Melted 11 | . . . . . . 1 1 8 . 1 . . . . . . . . . . . . . . . Heat Transferred 7510 | . . . . 74 . 1051 111 3404 239 555 . 74 . . 111 990 37 . 50 . 222 592 . . . Parts Sabotaged . | . . . . . . . . . . . . . . . . . . . . . . . . . . Parts Stolen . | . . . . . . . . . . . . . . . . . . . . . . . . . . Parts Stripped . | . . . . . . . . . . . . . . . . . . . . . . . . . . Power Chain Reactions 4 | . . . . . . . . . . . . . . . . 2 1 . 1 . . . . . . Missiles Intercepted . | . . . . . . . . . . . . . . . . . . . . . . . . . . Alert | -11 -10 -10 -10 -9 -8 -8 -8 -8 -8 -8 -6 -6 -5 -5 -5 -5 -4 -4 -4 -4 -4 -3 -3 -2 -1 ------- Run | Jun Mat Min Exi Min Mat Gar Mat Sto Gar Rec Fac Gar Fac Was Fac Gar Fac Was Fac Gar Arm Res Gar Res Acc Peak Influence 1261 | 50 88 188 . 190 31 937 532 870 1261 567 692 779 427 173 132 813 551 154 233 467 498 583 316 238 354 Initial 567 | . 3 34 . . 31 20 456 224 565 567 532 480 408 115 . . 426 154 107 44 245 176 276 117 120 Average 335 | 20 52 72 . 123 31 402 493 510 838 365 561 625 356 109 60 575 436 154 110 263 325 330 281 148 125 Maximum Alert Level 4 | . . . . . . 3 2 3 4 2 2 3 2 . . 3 2 . 1 2 2 2 1 1 1 Low Security (%) 40 | 100 100 100 . 100 100 30 . . . 16 . . . 100 100 10 . 100 91 22 . 22 . 77 75 Level 1 23 | . . . . . . 26 . 35 . 42 . . 48 . . 2 42 . 8 65 75 62 100 22 24 Level 2 27 | . . . . . . 27 100 52 49 41 100 82 51 . . 60 57 . . 11 24 15 . . . Level 3 7 | . . . . . . 15 . 12 25 . . 17 . . . 27 . . . . . . . . . Level 4 1 | . . . . . . . . . 25 . . . . . . . . . . . . . . . . Level 5 . | . . . . . . . . . . . . . . . . . . . . . . . . . . High Security . | . . . . . . . . . . . . . . . . . . . . . . . . . . Max Security . | . . . . . . . . . . . . . . . . . . . . . . . . . . Squads Dispatched 28 | . . . . . . . . 6 . . . . 1 . 3 . 5 . 5 . 2 5 . . 1 Investigation 1 | . . . . . . . . . . . . . . . . . . . . . . . . . 1 Extermination 6 | . . . . . . . . . . . . . . . . . 3 . 2 . . 1 . . . Reinforcement 16 | . . . . . . . . 4 . . . . 1 . 2 . 2 . 1 . 2 4 . . . Assault 2 | . . . . . . . . 1 . . . . . . 1 . . . . . . . . . . Garrison 3 | . . . . . . . . 1 . . . . . . . . . . 2 . . . . . . Intercept . | . . . . . . . . . . . . . . . . . . . . . . . . . . Searches Triggered . | . . . . . . . . . . . . . . . . . . . . . . . . . . Construction Impeded 3 | . . . . . . . . 1 . . . . . . . . 1 . . . . 1 . . . Haulers Reinforced 1 | . . . . . . . . . . . . . . . . . . . 1 . . . . . . Active Scanning Responses . | . . . . . . . . . . . . . . . . . . . . . . . . . . Cargo Convoy Interrupts 1 | . . . . . . . . . . . . . . . . . . . . . . 1 . . . Stealth | -11 -10 -10 -10 -9 -8 -8 -8 -8 -8 -8 -6 -6 -5 -5 -5 -5 -4 -4 -4 -4 -4 -3 -3 -2 -1 --------- Run | Jun Mat Min Exi Min Mat Gar Mat Sto Gar Rec Fac Gar Fac Was Fac Gar Fac Was Fac Gar Arm Res Gar Res Acc Distress Signals 14 | . . . . . . . . 2 1 . 1 . . . 1 . 1 . 1 . . 5 . 1 1 Communications Jammed 47 | . . . . . . . . . . . . . . . . . . . . . . 47 . . . Distress Signals 47 | . . . . . . . . . . . . . . . . . . . . . . 47 . . . Times Spotted 408 | . 2 5 . 10 . 32 2 40 28 3 12 18 1 5 8 23 21 5 21 28 20 41 21 13 49 Peak Tracking Total 24 | . 2 3 . 4 . 4 1 8 7 1 11 6 1 1 3 5 5 2 4 7 5 12 17 8 24 Tactical Retreats 16 | . . . . . . 1 . . 1 . . 1 . . . . . . . . . 1 2 1 9 Traps | -11 -10 -10 -10 -9 -8 -8 -8 -8 -8 -8 -6 -6 -5 -5 -5 -5 -4 -4 -4 -4 -4 -3 -3 -2 -1 ------- Run | Jun Mat Min Exi Min Mat Gar Mat Sto Gar Rec Fac Gar Fac Was Fac Gar Fac Was Fac Gar Arm Res Gar Res Acc Traps Triggered 31 | . 2 . . . . 5 . . 1 . . 6 2 . . 7 1 . . 2 2 1 1 . 1 Indirectly . | . . . . . . . . . . . . . . . . . . . . . . . . . . Trap Hack Attempts . | . . . . . . . . . . . . . . . . . . . . . . . . . . Triggered . | . . . . . . . . . . . . . . . . . . . . . . . . . . Disarmed . | . . . . . . . . . . . . . . . . . . . . . . . . . . Reprogrammed . | . . . . . . . . . . . . . . . . . . . . . . . . . . Reused 3 | . . . . . . . . 1 . . . . . . . . . . . . . 2 . . . Traps Extracted 1 | . . . . . . . . . . . . . . . . . . . . . . 1 . . . Installed 4 | . . . . . . . . 1 . . . . . . . . . . . . . 3 . . . Triggered 3 | . . . . . . . . 1 . . . . . . . . . . . . . 2 . . . Most Traps Carried 6 | . . . . . . 6 6 6 5 5 5 5 5 5 5 5 5 5 5 5 5 5 3 3 3 Machines | -11 -10 -10 -10 -9 -8 -8 -8 -8 -8 -8 -6 -6 -5 -5 -5 -5 -4 -4 -4 -4 -4 -3 -3 -2 -1 ---------- Run | Jun Mat Min Exi Min Mat Gar Mat Sto Gar Rec Fac Gar Fac Was Fac Gar Fac Was Fac Gar Arm Res Gar Res Acc Machines Disabled 36 | . . . . . . 6 . 3 4 . . 4 1 . . 4 4 . . 5 1 3 1 . . Max in Single Turn 3 | . . . . . . 3 . 2 1 . . 2 1 . . 2 3 . . 1 1 2 . . . Garrison Access 4 | . . . . . . . . . . . . . . . 1 . . . . . . . . . 3 Garrison Relay 14 | . . . . . . 2 . . 4 . . 3 . . . 1 . . . 4 . . . . . Phase Generator 1 | . . . . . . . . . . . . 1 . . . . . . . . . . . . . Machines Repaired . | . . . . . . . . . . . . . . . . . . . . . . . . . . Machines Sabotaged . | . . . . . . . . . . . . . . . . . . . . . . . . . . Overloaded Fab Kills . | . . . . . . . . . . . . . . . . . . . . . . . . . . Hacking | -11 -10 -10 -10 -9 -8 -8 -8 -8 -8 -8 -6 -6 -5 -5 -5 -5 -4 -4 -4 -4 -4 -3 -3 -2 -1 --------- Run | Jun Mat Min Exi Min Mat Gar Mat Sto Gar Rec Fac Gar Fac Was Fac Gar Fac Was Fac Gar Arm Res Gar Res Acc Machines Accessed 58 | . 2 1 1 . 2 3 1 5 2 13 1 2 3 . 2 3 3 . 3 2 . 2 . 1 6 Terminals 36 | . 2 . . . 1 3 1 4 2 6 . 2 3 . . 3 2 . 1 2 . . . 1 3 Fabricators . | . . . . . . . . . . . . . . . . . . . . . . . . . . Repair Stations 1 | . . . . . . . . . . . . . . . . . 1 . . . . . . . . Recycling Units 9 | . . . . . . . . . . 7 . . . . . . . . 1 . . 1 . . . Scanalyzers 1 | . . . . . . . . . . . . . . . 1 . . . . . . . . . . Garrison Access 9 | . . . . . 1 . . 1 . . 1 . . . 1 . . . 1 . . 1 . . 3 Total Hacks 103 | . 3 1 1 . 2 6 3 7 4 33 1 2 4 . 3 4 6 . 5 3 . 2 . 1 12 Successful 56 | . 3 1 1 . 1 2 1 5 1 18 1 . 2 . 2 4 3 . 2 1 . 2 . . 6 Failed 46 | . . . . . 1 4 2 2 3 14 . 2 2 . 1 . 3 . 3 2 . . . 1 6 Catastrophic 15 | . . . . . 1 1 1 . . 2 . 2 2 . . . . . 1 1 . . . 1 3 Database Lockouts 1 | . . . . . . . . . . 1 . . . . . . . . . . . . . . . Manual 23 | . . . . . . . 3 1 . 14 . . 1 . . 1 . . . . . . . . 3 Terminals 68 | . 3 . . . 1 6 3 6 4 17 . 2 4 . . 4 4 . 1 3 . . . 1 9 Fabricators . | . . . . . . . . . . . . . . . . . . . . . . . . . . Repair Stations 2 | . . . . . . . . . . . . . . . . . 2 . . . . . . . . Recycling Units 20 | . . . . . . . . . . 16 . . . . . . . . 3 . . 1 . . . Scanalyzers 1 | . . . . . . . . . . . . . . . 1 . . . . . . . . . . Garrison Access 10 | . . . . . 1 . . 1 . . 1 . . . 2 . . . 1 . . 1 . . 3 Terminal Hacks 29 | . 3 1 1 . . 2 . 4 1 8 . . 2 . . 3 1 . . 1 . . . . 2 Record 1 | . . . 1 . . . . . . . . . . . . . . . . . . . . . . Part Schematic 3 | . . . . . . . . . . 3 . . . . . . . . . . . . . . . Robot Analysis 1 | . 1 . . . . . . . . . . . . . . . . . . . . . . . . Open Door 3 | . . 1 . . . 1 . 1 . . . . . . . . . . . . . . . . . Emergency Access Points 4 | . . . . . . 1 . . 1 . . . . . . 1 . . . 1 . . . . . Terminal Index 1 | . . . . . . . . . . . . . . . . . . . . . . . . . 1 Recycling Unit Index 1 | . . . . . . . . . . 1 . . . . . . . . . . . . . . . Unreport Threat 4 | . . . . . . . . . . 2 . . 1 . . . 1 . . . . . . . . Locate Traps 2 | . 2 . . . . . . . . . . . . . . . . . . . . . . . . Dispatch Records 2 | . . . . . . . . 1 . 1 . . . . . . . . . . . . . . . Maintenance Status 1 | . . . . . . . . . . . . . 1 . . . . . . . . . . . . Hauler Manifests 2 | . . . . . . . . 1 . 1 . . . . . . . . . . . . . . . Zone Layout 2 | . . . . . . . . 1 . . . . . . . . . . . . . . . . 1 Patrol Navigation 1 | . . . . . . . . . . . . . . . . 1 . . . . . . . . . Security Stations 1 | . . . . . . . . . . . . . . . . 1 . . . . . . . . . Fabricator Hacks . | . . . . . . . . . . . . . . . . . . . . . . . . . . Repair Station Hacks 2 | . . . . . . . . . . . . . . . . . 2 . . . . . . . . Scan Component 1 | . . . . . . . . . . . . . . . . . 1 . . . . . . . . Repair 1 | . . . . . . . . . . . . . . . . . 1 . . . . . . . . Recycling Unit Hacks 5 | . . . . . . . . . . 3 . . . . . . . . 1 . . 1 . . . Report Inventory 3 | . . . . . . . . . . 2 . . . . . . . . 1 . . . . . . Retrieve Components 2 | . . . . . . . . . . 1 . . . . . . . . . . . 1 . . . Scanalyzer . | . . . . . . . . . . . . . . . . . . . . . . . . . . Garrison Access Hacks 10 | . . . . . 1 . . 1 . . 1 . . . 2 . . . 1 . . 1 . . 3 Unlock Access 6 | . . . . . 1 . . 1 . . 1 . . . 1 . . . 1 . . 1 . . . Seal Access 3 | . . . . . . . . . . . . . . . . . . . . . . . . . 3 Coupler Status 1 | . . . . . . . . . . . . . . . 1 . . . . . . . . . . Unauthorized Hacks 10 | . . . . . . . 1 . . 7 . . . . . 1 . . . . . . . . 1 Terminals 3 | . . . . . . . 1 . . . . . . . . 1 . . . . . . . . 1 Botnet 2 | . . . . . . . . . . . . . . . . 1 . . . . . . . . 1 Operators 1 | . . . . . . . 1 . . . . . . . . . . . . . . . . . . Fabricators . | . . . . . . . . . . . . . . . . . . . . . . . . . . Repair Stations . | . . . . . . . . . . . . . . . . . . . . . . . . . . Recycling Units 7 | . . . . . . . . . . 7 . . . . . . . . . . . . . . . Tunnel 7 | . . . . . . . . . . 7 . . . . . . . . . . . . . . . Scanalyzers . | . . . . . . . . . . . . . . . . . . . . . . . . . . Garrison Access . | . . . . . . . . . . . . . . . . . . . . . . . . . . Data Cores Recovered . | . . . . . . . . . . . . . . . . . . . . . . . . . . Used . | . . . . . . . . . . . . . . . . . . . . . . . . . . Hacking Detections 38 | . 1 . . . 1 3 1 3 2 6 . 2 3 . 2 2 3 . 2 1 . 2 . 1 3 Full Trace Events 4 | . . . . . . . . . 1 2 . . . . . . . . . . . . . . 1 Feedback Events . | . . . . . . . . . . . . . . . . . . . . . . . . . . Feedback Blocked . | . . . . . . . . . . . . . . . . . . . . . . . . . . Robot Schematics Acquired . | . . . . . . . . . . . . . . . . . . . . . . . . . . Robots Built . | . . . . . . . . . . . . . . . . . . . . . . . . . . Authchips . | . . . . . . . . . . . . . . . . . . . . . . . . . . Time . | . . . . . . . . . . . . . . . . . . . . . . . . . . Total Robot Build Rating . | . . . . . . . . . . . . . . . . . . . . . . . . . . Part Schematics Acquired 3 | . . . . . . . . . . 3 . . . . . . . . . . . . . . . Parts Built . | . . . . . . . . . . . . . . . . . . . . . . . . . . Authchips . | . . . . . . . . . . . . . . . . . . . . . . . . . . Time . | . . . . . . . . . . . . . . . . . . . . . . . . . . Total Part Build Rating . | . . . . . . . . . . . . . . . . . . . . . . . . . . Parts Repaired 1 | . . . . . . . . . . . . . . . . . 1 . . . . . . . . Time 31 | . . . . . . . . . . . . . . . . . 31 . . . . . . . . Parts Recycled . | . . . . . . . . . . . . . . . . . . . . . . . . . . Recycled Matter . | . . . . . . . . . . . . . . . . . . . . . . . . . . Retrieved Matter . | . . . . . . . . . . . . . . . . . . . . . . . . . . Retrieved Components 10 | . . . . . . . . . . 9 . . . . . . . . . . . 1 . . . Parts Scanalyzed . | . . . . . . . . . . . . . . . . . . . . . . . . . . Part Schematics Acquired . | . . . . . . . . . . . . . . . . . . . . . . . . . . Parts Damaged . | . . . . . . . . . . . . . . . . . . . . . . . . . . Bothacking | -11 -10 -10 -10 -9 -8 -8 -8 -8 -8 -8 -6 -6 -5 -5 -5 -5 -4 -4 -4 -4 -4 -3 -3 -2 -1 ------------ Run | Jun Mat Min Exi Min Mat Gar Mat Sto Gar Rec Fac Gar Fac Was Fac Gar Fac Was Fac Gar Arm Res Gar Res Acc Used RIF Installer 6 | . . . . . . 2 . . 1 . . 1 . . . 1 . . . 1 . . . . . Command Fork 2 | . . . . . . 1 . . . . . . . . . 1 . . . . . . . . . Threat Obfuscator 1 | . . . . . . . . . . . . 1 . . . . . . . . . . . . . Zone Cloak 1 | . . . . . . . . . . . . . . . . . . . . 1 . . . . . Robot Detection 1 | . . . . . . . . . 1 . . . . . . . . . . . . . . . . Robots Hacked 51 | . . . . . . . . . 2 . . 4 . 5 3 4 4 5 4 6 6 . 3 5 . Non-combat 9 | . . . . . . . . . . . . . . . 3 . 2 . 1 . 1 . . 2 . Combat 42 | . . . . . . . . . 2 . . 4 . 5 . 4 2 5 3 6 5 . 3 3 . Robot Hacks Applied 51 | . . . . . . . . . 2 . . 4 . 5 3 4 4 5 4 6 6 . 3 5 . start_evac 1 | . . . . . . . . . . . . . . . . . . . . . . . . 1 . map_earth 1 | . . . . . . . . . . . . . . . . . . . . . . . . 1 . drop_inventory 4 | . . . . . . . . . . . . . . . 2 . 1 . 1 . . . . . . ignore_parts 1 | . . . . . . . . . . . . . . . . . 1 . . . . . . . . purge_threat 1 | . . . . . . . . . . . . . . . . . . . . . 1 . . . . ignore_targets 10 | . . . . . . . . . . . . . . 5 . . . 5 . . . . . . . scatter_targeting 1 | . . . . . . . . . . . . . . . . 1 . . . . . . . . . amplify_resonance 1 | . . . . . . . . . . . . . . . . . . . . . . . . 1 . go_dormant 1 | . . . . . . . . . . . . . . . . . . . . . . . . 1 . overwrite_iff 14 | . . . . . . . . . 1 . . . . . . 3 1 . 3 4 . . 1 1 . formatsys_low 1 | . . . . . . . . . . . . . . . 1 . . . . . . . . . . formatsys_high 15 | . . . . . . . . . 1 . . 4 . . . . 1 . . 2 5 . 2 . . Relay Couplers Released 59 | . . . . . . 7 . . 14 . . 13 . . . 3 3 . . 19 . . . . . Machine Destruction 53 | . . . . . . 7 . . 14 . . 13 . . . 3 . . . 16 . . . . . Programmers 6 | . . . . . . . . . . . . . . . . . 3 . . 3 . . . . . Attached 22 | . . . . . . . . . 2 . . 3 . 1 1 1 1 1 . 5 2 5 . . . Fabnet Peak Effective % . | . . . . . . . . . . . . . . . . . . . . . . . . . . Robots Rewired 17 | . . . . . . 3 . . 6 . 1 . . . . 2 . . . . 5 . . . . Allies Hacked 3 | . . . . . . . . . . . . . . . . . 1 . . . . 2 . . . Hacks Repelled . | . . . . . . . . . . . . . . . . . . . . . . . . . . Allies | -11 -10 -10 -10 -9 -8 -8 -8 -8 -8 -8 -6 -6 -5 -5 -5 -5 -4 -4 -4 -4 -4 -3 -3 -2 -1 -------- Run | Jun Mat Min Exi Min Mat Gar Mat Sto Gar Rec Fac Gar Fac Was Fac Gar Fac Was Fac Gar Arm Res Gar Res Acc Total Allies 80 | . . 5 . . . 3 . . 9 . 1 4 . 19 1 5 3 1 4 9 11 . 4 1 . Largest Group 21 | . . 5 4 3 3 3 . . 6 3 2 4 4 21 16 9 5 1 1 2 9 9 2 1 . Highest-Rated Group 760 | . . 82 71 40 40 98 . . 91 59 42 116 116 760 629 463 184 46 58 105 494 494 116 30 . Highest-Rated Ally 148 | . . 31 31 16 16 39 . . 31 31 29 29 29 50 50 148 56 46 58 58 64 64 116 30 . Total Orders 2 | . . . . . . . . . . . . . . . . 2 . . . . . . . . . ROAM 2 | . . . . . . . . . . . . . . . . 2 . . . . . . . . . Ally Attacks 779 | . . 20 . 12 . 55 . . 47 8 8 1 15 254 39 126 21 44 11 6 66 30 10 6 . Total Damage 18064 | . . 199 . 118 . 755 . . 599 183 147 . 194 4968 949 3907 651 1069 307 175 2450 1111 234 48 . Kills 109 | . . 3 . 7 . 13 . . 8 2 2 . 3 12 9 22 1 1 3 . 13 6 2 2 . Allies Corrupted 3 | . . . . . . . . . . . . . . . . . . . . . . 3 . . . Allies Melted 2 | . . . . . . . . . . . . . . . . 1 1 . . . . . . . . Intel | -11 -10 -10 -10 -9 -8 -8 -8 -8 -8 -8 -6 -6 -5 -5 -5 -5 -4 -4 -4 -4 -4 -3 -3 -2 -1 ------- Run | Jun Mat Min Exi Min Mat Gar Mat Sto Gar Rec Fac Gar Fac Was Fac Gar Fac Was Fac Gar Arm Res Gar Res Acc Robot Analysis Total 1 | . 1 . . . . . . . . . . . . . . . . . . . . . . . . Derelict Logs Recovered 3 | . . . . 3 . . . . . . . . . . . . . . . . . . . . . Drone Launches . | . . . . . . . . . . . . . . . . . . . . . . . . . . Drone Recoveries . | . . . . . . . . . . . . . . . . . . . . . . . . . . Exploration | -11 -10 -10 -10 -9 -8 -8 -8 -8 -8 -8 -6 -6 -5 -5 -5 -5 -4 -4 -4 -4 -4 -3 -3 -2 -1 ------------- Run | Jun Mat Min Exi Min Mat Gar Mat Sto Gar Rec Fac Gar Fac Was Fac Gar Fac Was Fac Gar Arm Res Gar Res Acc Turns Passed 15321 | 534 349 831 332 738 67 1582 105 617 737 1113 132 651 167 464 418 1645 761 184 810 1017 431 689 238 370 339 Spaces Moved 9196 | 279 175 497 205 435 36 740 61 239 333 562 82 522 194 356 303 649 356 74 286 635 284 617 141 361 774 Core 650 | 6 . . . . . . . . . . . . . . . . . . . . . 86 62 356 140 Treads 3854 | 273 175 497 205 435 36 436 . 232 333 355 64 175 . 63 197 . 90 . . 8 59 162 59 . . Legs 1536 | . . . . . . 122 61 7 . 165 . 41 . . . 288 . . . 622 225 . . 5 . Wheels 506 | . . . . . . 182 . . . 42 . . . . 71 . 211 . . . . . . . . Hover 392 | . . . . . . . . . . . 18 129 . . 35 165 . . . . . 25 20 . . Flight 2258 | . . . . . . . . . . . . 177 194 293 . 196 55 74 286 5 . 344 . . 634 Fastest Speed 26 | 50 160 160 160 160 160 120 120 120 145 130 99 78 78 78 91 147 129 230 218 105 77 50 50 50 26 Average Speed 134 | 157 160 160 160 160 160 162 120 145 167 165 139 106 78 104 112 214 164 230 227 121 100 81 127 83 36 Slowest Speed 331 | 160 160 160 160 160 160 240 120 305 225 260 151 140 78 121 147 331 331 230 242 242 112 258 198 250 100 Overloaded Moves . | . . . . . . . . . . . . . . . . . . . . . . . . . . Propulsion Burnouts . | . . . . . . . . . . . . . . . . . . . . . . . . . . Robots Hopped 15 | . . . . . . . . . . . . . . . . . . . . . . 1 . . 14 Cave-ins Triggered . | . . . . . . . . . . . . . . . . . . . . . . . . . . Exploration Rate (%) 41 | 11 39 78 59 83 5 86 10 56 44 99 4 60 5 88 12 66 10 69 9 62 22 23 30 11 30 Regions Visited 25 Branch Regions 6 Pre-discovered Areas 8 | . . . 1 . . . . . . 7 . . . . . . . . . . . . . . . Known Exits Taken 7 | . . . . . 1 . 1 1 . . 1 . . . 1 . . . 1 . . 1 . . . Unknown Exits Taken 8 | 1 1 1 1 1 . . . . . 1 . . . . . . . . . . 1 . . 1 . Scrap Searched 1 | . . . . 1 . . . . . . . . . . . . . . . . . . . . . Spaces Dug 34 | . . . . . . 12 . . . . . 1 . . 1 . 1 . 4 . . 2 . 10 3 Terrain Destroyed 358 | . . . . . . 15 . 67 5 . 27 71 . . 4 2 28 . 13 34 7 71 . 11 3 Melee 1 | . . . . . . . . . . . . 1 . . . . . . . . . . . . . Projectile 96 | . . . . . . . . . . . . . . . 4 2 18 . 13 10 7 28 . 11 3 AOE 261 | . . . . . . 15 . 67 5 . 27 70 . . . . 10 . . 24 . 43 . . . Terrain Rammed . | . . . . . . . . . . . . . . . . . . . . . . . . . . Walls Destroyed . | . . . . . . . . . . . . . . . . . . . . . . . . . . Machines Disabled . | . . . . . . . . . . . . . . . . . . . . . . . . . . Actions | -11 -10 -10 -10 -9 -8 -8 -8 -8 -8 -8 -6 -6 -5 -5 -5 -5 -4 -4 -4 -4 -4 -3 -3 -2 -1 --------- Run | Jun Mat Min Exi Min Mat Gar Mat Sto Gar Rec Fac Gar Fac Was Fac Gar Fac Was Fac Gar Arm Res Gar Res Acc Total 11192 | 319 214 527 210 465 45 993 88 381 430 704 95 594 204 437 371 854 469 85 376 788 394 718 200 420 811 Wait 646 | 1 15 10 3 14 1 33 21 24 5 102 2 20 4 54 33 42 50 . 32 45 34 39 34 22 6 Move 9149 | 278 174 496 204 434 36 739 60 239 332 561 82 521 194 355 303 648 356 73 286 633 283 615 140 360 747 Hop 14 | . . . . . . . . . . . . . . . . . . . . . . 1 . . 13 Pick Up 112 | 7 3 5 1 7 4 15 1 6 8 1 . 4 . 2 4 11 4 1 2 8 2 5 1 2 8 Fast Attach 82 | 7 3 1 . . . 8 . 7 7 1 . 4 1 . 3 1 5 . . 4 5 1 4 4 16 Attach 75 | . . . . . 4 7 . 6 1 2 2 3 1 1 3 1 1 1 . 8 4 10 4 6 10 Detach 34 | . . . . . . 2 . . 1 1 . 2 . 1 4 1 . . . 2 4 1 4 5 6 Swap 105 | 1 1 3 1 2 . 16 1 12 10 . 2 3 . 2 3 8 6 3 13 7 7 3 . 1 . Drop 123 | . 3 7 1 1 . 20 1 13 7 11 . 2 . 2 7 13 8 . 2 8 6 5 3 1 2 Fire 517 | 25 15 4 . 6 . 46 2 73 31 21 3 11 2 12 8 29 39 7 41 64 26 32 3 14 3 Melee 136 | . . . . . . 58 . . 28 . 3 10 2 8 3 5 . . . 3 10 . 2 4 . Ram 5 | . . . . . . . . . . 1 . . . . . . . . . . . 2 2 . . Kick 3 | . . . . . . . 2 . . . . . . . . . . . . . . . . 1 . Crush 5 | . . 1 . 1 . . . . . 3 . . . . . . . . . . . . . . . Escape Stasis 124 | . . . . . . 16 . . . . . 14 . . . 85 . . . 6 . . 3 . . Rewire 58 | . . . . . . 33 . . . . 1 . . . . 10 . . . . 13 1 . . . Trap 4 | . . . . . . . . 1 . . . . . . . . . . . . . 3 . . . Miscellaneous . | . . . . . . . . . . . . . . . . . . . . . . . . . . Route ------- -11/Junkyard -10/Materials (discovered 2 exits: [*Mat] / *Min) -10/Mines (discovered 3 exits: [*Mat x2] / *Exi) -10/Exiles (discovered 2 exits: [*Min x2]) -9/Mines (discovered 2 exits: *Mat x2) -8/Materials (discovered 3 exits: Fac / Sto / Gar) -8/Garrison (discovered 3 exits: *Mat x3) -8/Materials -8/Storage -8/Garrison -8/Recycling -6/Factory -6/Garrison (discovered 2 exits: *Fac x2) -5/Factory -5/Waste -5/Factory (discovered 2 exits: [*Upp] / Gar) -5/Garrison (discovered 3 exits: *Fac x3) -4/Factory -4/Waste -4/Factory -4/Garrison (discovered 3 exits: [*Arm x3]) -4/Armory -3/Research -3/Garrison -2/Research -1/Access History --------- Turn | Location | Event 25 | -11/Junkyard | Discovered new exit (range 15) 535 | -11/Junkyard | Entered Materials 536 | -10/Materials | Build established: Mutant 691 | -10/Materials | Discovered new exit (range 9) 756 | -10/Materials | Discovered new exit (range 13) 884 | -10/Materials | Entered Mines 888 | -10/Mines | Assisted by bots powering up and referring to "LRC-V3" 1089 | -10/Mines | Discovered new exit (range 5) 1262 | -10/Mines | A weapon hastily lodged in a ceiling crevice suddenly fell to the ground 1292 | -10/Mines | Discovered new exit (range 13) 1526 | -10/Mines | Deemed a non-threat by the Exiles lab entrance 1526 | -10/Mines | Discovered new exit (range 5) 1610 | -10/Mines | Met a Derelict who couldn't figure out how to use a Trap Extractor 1715 | -10/Mines | Entered Exiles 1715 | -10/Exiles | Accompanied by 4 allies 1736 | -10/Exiles | Discovered new exit (range 15) 1745 | -10/Exiles | Led the pair of lost Derelicts to a safe place 1755 | -10/Exiles | Met 8R-AWN 1781 | -10/Exiles | Met EX-HEX 1845 | -10/Exiles | Met EX-DEC 1851 | -10/Exiles | Learned location of Zion (-7) 2028 | -10/Exiles | Discovered new exit (range 12) 2047 | -10/Exiles | Entered Mines 2047 | -9/Mines | Accompanied by 3 allies 2071 | -9/Mines | Met a Derelict bent on vengeance 2208 | -9/Mines | Learned Materials terminal intel 2534 | -9/Mines | Discovered new exit (range 10) 2641 | -9/Mines | Discovered new exit (range 6) 2654 | -9/Mines | Learned location of 1 exit from Materials 2785 | -9/Mines | Entered Materials 2785 | -8/Materials | Accompanied by 3 allies 2785 | -8/Materials | Evolved 4 slots: Propulsion x1, Utility x2, Weapon x1 2786 | -8/Materials | Identified exit to Storage 2787 | -8/Materials | Identified exit to Factory 2788 | -8/Materials | Loaded intel: 10 terminal locations 2852 | -8/Materials | Identified exit to Garrison 2852 | -8/Materials | Entered Garrison 2852 | -8/Garrison | Accompanied by 3 allies 2886 | -8/Garrison | Triggered checkpoint 2899 | -8/Garrison | Garrison Relay disabled 2967 | -8/Garrison | Installed Relay Interface Framework 3154 | -8/Garrison | Triggered checkpoint 3157 | -8/Garrison | Triggered checkpoint 3198 | -8/Garrison | Build established: Scavenger-Mutant 3235 | -8/Garrison | Discovered new exit (range 12) 3308 | -8/Garrison | Triggered checkpoint 3360 | -8/Garrison | Garrison Relay disabled 3582 | -8/Garrison | Triggered checkpoint 3603 | -8/Garrison | System corruption reached 10% 3733 | -8/Garrison | Discovered new exit (range 13) 3820 | -8/Garrison | Triggered checkpoint 3908 | -8/Garrison | Lost 3 parts (1p1n1w) 3998 | -8/Garrison | Triggered checkpoint 4164 | -8/Garrison | Build established: Scavenger-Tank 4208 | -8/Garrison | Triggered checkpoint 4217 | -8/Garrison | Expanded RIF knowledge: Command Fork 4306 | -8/Garrison | Discovered new exit (range 9) 4434 | -8/Garrison | Entered Materials 4522 | -8/Materials | Discovered exit to Storage (range 5) 4539 | -8/Materials | Entered Storage 4939 | -8/Storage | First assault squad dispatched 4995 | -8/Storage | Core integrity fell below 50% 5080 | -8/Storage | Garrison activated, responded to threat 5083 | -8/Storage | Lost 4 parts (1n1u2w) 5156 | -8/Storage | Identified exit to Garrison 5156 | -8/Storage | Entered Garrison 5206 | -8/Garrison | Expanded RIF knowledge: Robot Detection 5240 | -8/Garrison | Triggered checkpoint 5319 | -8/Garrison | Lost 4 parts (1p1n2w) 5338 | -8/Garrison | Garrison Relay disabled 5535 | -8/Garrison | Rescued a captive Derelict 5620 | -8/Garrison | Triggered checkpoint 5637 | -8/Garrison | Build established: Bothacker-Mutant 5642 | -8/Garrison | Destroyed 7 combat bots 5678 | -8/Garrison | Triggered checkpoint 5708 | -8/Garrison | Garrison Relay disabled 5819 | -8/Garrison | Garrison Relay disabled 5824 | -8/Garrison | Garrison Relay disabled 5871 | -8/Garrison | Discovered new exit (range 14) 5893 | -8/Garrison | Entered Recycling 5893 | -8/Recycling | Accompanied by 3 allies 5919 | -8/Recycling | Found Scrap Engine 6698 | -8/Recycling | Discovered new exit (range 15) 6973 | -8/Recycling | Build established: Bothacker-Construct 7006 | -8/Recycling | Entered Factory 7006 | -6/Factory | Accompanied by 1 ally 7006 | -6/Factory | Evolved 4 slots: Propulsion x1, Utility x3 7138 | -6/Factory | Identified exit to Garrison 7138 | -6/Factory | Entered Garrison 7138 | -6/Garrison | Warlord forces raided the area 7168 | -6/Garrison | Triggered checkpoint 7178 | -6/Garrison | Garrison Relay disabled 7184 | -6/Garrison | Triggered checkpoint 7190 | -6/Garrison | Warlord forces retreated 7232 | -6/Garrison | Triggered checkpoint 7296 | -6/Garrison | Triggered checkpoint 7323 | -6/Garrison | Expanded RIF knowledge: Threat Obfuscation 7338 | -6/Garrison | Garrison Relay disabled 7402 | -6/Garrison | Discovered new exit (range 15) 7404 | -6/Garrison | Triggered checkpoint 7620 | -6/Garrison | Discovered new exit (range 11) 7638 | -6/Garrison | Triggered checkpoint 7648 | -6/Garrison | Garrison Relay disabled 7677 | -6/Garrison | Phase Generator disabled 7789 | -6/Garrison | Entered Factory 7789 | -5/Factory | Accompanied by 4 allies 7789 | -5/Factory | Evolved 2 slots: Utility x2 7811 | -5/Factory | Discovered new exit (range 11) 7956 | -5/Factory | Manually triggered Chute Trap 7956 | -5/Factory | Sucked down chute 7956 | -5/Factory | Entered Waste 7964 | -5/Waste | Spotted C-40 Crusher 7974 | -5/Waste | Spotted C-40 Crusher 8030 | -5/Waste | 3 allies followed down the chute 8031 | -5/Waste | Spotted C-40 Crusher 8047 | -5/Waste | Spotted C-40 Crusher 8047 | -5/Waste | Spotted C-40 Crusher 8101 | -5/Waste | Build established: Botlord-Mutant 8103 | -5/Waste | Spotted C-40 Crusher 8181 | -5/Waste | Allies destroyed C-40 Crusher 8220 | -5/Waste | Discovered new exit (range 10) 8314 | -5/Waste | Warlord forces began an assault 8317 | -5/Waste | Allies destroyed C-40 Crusher 8332 | -5/Waste | Allies destroyed C-40 Crusher 8420 | -5/Waste | Entered Factory 8420 | -5/Factory | Accompanied by 15 allies 8665 | -5/Factory | Discovered new exit (range 10) 8838 | -5/Factory | Identified exit to Garrison 8838 | -5/Factory | Entered Garrison 8838 | -5/Garrison | Accompanied by 7 allies 9001 | -5/Garrison | Spotted B-75 Beast 9028 | -5/Garrison | Allies destroyed B-75 Beast 9046 | -5/Garrison | Triggered checkpoint 9148 | -5/Garrison | Triggered checkpoint 9314 | -5/Garrison | Garrison Relay disabled 9386 | -5/Garrison | Build established: Botlord-Construct 9394 | -5/Garrison | Discovered new exit (range 8) 9419 | -5/Garrison | Spotted B-90 Cyclops 9433 | -5/Garrison | Destroyed B-90 Cyclops 9484 | -5/Garrison | Rewired B-75 Beast 9531 | -5/Garrison | Rewired B-90 Cyclops 9650 | -5/Garrison | Triggered checkpoint 9776 | -5/Garrison | Discovered new exit (range 11) 9832 | -5/Garrison | Triggered checkpoint 10214 | -5/Garrison | Triggered checkpoint 10321 | -5/Garrison | Learned Factory security intel 10386 | -5/Garrison | Expanded RIF knowledge: Command Fork 10446 | -5/Garrison | Discovered new exit (range 10) 10483 | -5/Garrison | Entered Factory 10483 | -4/Factory | Accompanied by 5 allies 10483 | -4/Factory | Spotted B-86 Titan 10483 | -4/Factory | Evolved 2 slots: Power x1, Propulsion x1 10507 | -4/Factory | Destroyed B-86 Titan 10751 | -4/Factory | P-70 Sage assimilated allied 7S-VSP(m) 10847 | -4/Factory | Repaired Hardcell Cannon 11000 | -4/Factory | Discovered new exit (range 7) 11244 | -4/Factory | Sucked down chute 11244 | -4/Factory | Entered Waste 11245 | -4/Waste | Met a frightened Derelict 11259 | -4/Waste | EMP discharged 11290 | -4/Waste | Spotted C-40 Crusher 11332 | -4/Waste | Spotted C-40 Crusher 11338 | -4/Waste | Spotted C-40 Crusher 11338 | -4/Waste | Spotted C-40 Crusher 11348 | -4/Waste | Allies destroyed C-40 Crusher 11354 | -4/Waste | Spotted C-40 Crusher 11359 | -4/Waste | EMP discharged 11392 | -4/Waste | Discovered new exit (range 16) 11394 | -4/Waste | Spotted C-40 Crusher 11428 | -4/Waste | Entered Factory 12138 | -4/Factory | Garrison activated, responded to threat 12216 | -4/Factory | Identified exit to Garrison 12238 | -4/Factory | Entered Garrison 12239 | -4/Garrison | System corruption reached 10% 12266 | -4/Garrison | Triggered checkpoint 12299 | -4/Garrison | Garrison Relay disabled 12420 | -4/Garrison | Triggered checkpoint 12485 | -4/Garrison | Destroyed 7 combat bots 12604 | -4/Garrison | Discovered new exit (range 12) 12666 | -4/Garrison | Triggered checkpoint 12711 | -4/Garrison | Garrison Relay disabled 12716 | -4/Garrison | Lost 3 parts (2u1w) 12838 | -4/Garrison | Discovered new exit (range 12) 12874 | -4/Garrison | Triggered checkpoint 12926 | -4/Garrison | Expanded RIF knowledge: Zone Cloak 12936 | -4/Garrison | Garrison Relay disabled 13052 | -4/Garrison | Triggered checkpoint 13078 | -4/Garrison | Discovered new exit (range 12) 13118 | -4/Garrison | Triggered checkpoint 13154 | -4/Garrison | Garrison Relay disabled 13255 | -4/Garrison | Entered Armory 13255 | -4/Armory | Accompanied by 2 allies 13645 | -4/Armory | Discovered new exit (range 5) 13686 | -4/Armory | Entered Research 13686 | -3/Research | Accompanied by 9 allies 13686 | -3/Research | Evolved 2 slots: Utility x1, Weapon x1 13780 | -3/Research | Found Antimissile System 14224 | -3/Research | Cargo convoy interrupted 14225 | -3/Research | Spotted Striker 14225 | -3/Research | Spotted Executioner 14225 | -3/Research | Spotted Executioner 14242 | -3/Research | Destroyed Striker 14277 | -3/Research | System corruption reached 10% 14355 | -3/Research | Spotted B-86 Titan 14356 | -3/Research | Lost 13 parts (1p1n5u6w) 14375 | -3/Research | Identified exit to Garrison 14375 | -3/Research | Entered Garrison 14543 | -3/Garrison | Build established: Botlord-Mutant 14561 | -3/Garrison | Triggered checkpoint 14568 | -3/Garrison | Spotted B-86 Titan 14574 | -3/Garrison | Triggered checkpoint 14576 | -3/Garrison | Assimilated Titan 8a with formatsys_high 14582 | -3/Garrison | Core integrity fell below 50% 14606 | -3/Garrison | Triggered checkpoint 14609 | -3/Garrison | Discovered new exit (range 10) 14613 | -3/Garrison | Entered Research 14613 | -2/Research | Evolved 2 slots: Propulsion x1, Utility x1 14641 | -2/Research | Lost 8 parts (1p3n3u1w) 14877 | -2/Research | Build established: Bothacker-Mutant 14949 | -2/Research | Spotted B-90 Cyclops 14974 | -2/Research | Discovered new exit (range 14) 14983 | -2/Research | Entered Access 14983 | -1/Access | Evolved 2 slots: Propulsion x2 15009 | -1/Access | Lost 5 parts (3n1u1w) 15033 | -1/Access | Spotted B-99 Colossus 15099 | -1/Access | Core integrity fell below 50% 15132 | -1/Access | Lost 11 parts (7n3u1w) 15239 | -1/Access | Found Prototype Launcher 15239 | -1/Access | Identified Ragnarok Missile Launcher 15242 | -1/Access | Found Ragnarok Missile Launcher 15308 | -1/Access | Spotted B-99 Colossus 15310 | -1/Access | Spotted B-99 Colossus 15312 | -1/Access | Core integrity fell below 20% 15322 | -1/Access | Destroyed by S-43 Plague with Heavy Machine Gun Last Messages --------------- 15309_ Imp. Core Shielding destroyed. 15309_ Knocked back. 15309_ Penetrated by Slug. 15309_ Slug penetrates Wall. 15311_ Penetrated by Slug. 15311_ Slug penetrates G-73 Enforcer. 15311_ System Shield destroyed. 15312_ Penetrated by Slug. 15312_ Slug penetrates G-73 Enforcer. 15314_ Penetrated by Slug. 15314_ Impulse Thruster Array destroyed. 15314_ Slug penetrates Reinforced Barrier. 15318_ Penetrated by Slug. 15318_ Slug penetrates Sealed Heavy Doors. 15318_ Penetrated by Slug. 15318_ Slug penetrates Sealed Heavy Doors. 15319_ Slug penetrates B-99 Colossus. 15319_ Slug penetrates Sealed Heavy Doors. 15319_ Slug penetrates Reinforced Barrier. 15321_ Lgt. Quantum Reactor destroyed. Map ----- +----------------------------------------------------+ | " # #????????????????????????????????????????? | | # #????????????????????????????????????????? | | # #????????????????????????????????????????? | | #### #????????????????????????????????????????? | | ??# #????????????????????????????????????????? | | ?# #????????????????????????????????????????? | | ?# #????????????????????????????????????????? | | # #????????????????????????????????????????? | | # #????????????????????????????????????????? | | + +????????????????????????????????????????? | | # #????????????????????????????????????????? | | # #????????????????????????????????????????? | | ?# #????????????????????????????????????????? | | ?# #????????????????????????????????????????? | | ??# #????????????????????????????????????????? | | ??# #????????????????????????????????????????? | | ???# #????????#########???????????????????????? | | ##?# #????????# "???????????????????????? | | " ?# #????????# "???????????????????????? | | # ########## "???????????????????????? | | # B "???????????????????????? | | + s s BB "???????????????????????? | | # % s s "???????????????????????? | | # % g g s ss s%"???????????????????????? | | ?# % ######+#;; sBB ""??????????????????????? | | ?# #" ; BBs@"??????????????????????? | | #??# ## # s%""??????????????????????? | | ?? ## #########???????????????????????? | | ? ## #???????????????????????????????? | | ## #???????????????????????????????? | | ## #???????????????????????????????? | | ! ######! #???????????????????????????????? | | ! ?????# #???????????????????????????????? | | ?????# #???????????????????????????????? | | ?????# #???????????????????????????????? | | ?????# #???????????????????????????????? | | ?????#########???????????????????????????????? | | ?????????????????????????????????????????????????? | | ?????????????????????????????????????????????????? | | ?????????????????????????????????????????????????? | | ?????????????????????????????????????????????????? | | ?????????????????????????????????????????????????? | | ?????????????????????????????????????????????????? | | ?????????????????????????????????????????????????? | | ?????????????????????????????????????????????????? | | ?????????????????????????????????????????????????? | | ?????????????????????????????????????????????????? | | ?????????????????????????????????????????????????? | | ?????????????????????????????????????????????????? | | ?????????????????????????????????????????????????? | +----------------------------------------------------+ Best States ------------- Heat Dissipation 96 Energy Generation 42 Energy Capacity 743 Matter Stores 300 Matter Capacity 300 Sight Range 16 Terrain Scan Density 10 Jamming Range 14 Cloak Strength 4 Corruption Block 12 Armor Coverage 225 Resistance: KI 30 Resistance: EM 20 Core Shielding 30 Evasion (%) 76 Core Analysis 6 Recoil Reduction 5 Defensive Hacking 20 Relay Coupler Types 5 Relay Coupler Value 122 Trap Extractor Capacity 8 Item Schematics ----------------- Datajack | -8/Recycling | Hacked Plasma Cannon | -8/Recycling | Hacked Chainsword | -8/Recycling | Hacked Robot Schematics ------------------ None Fabricated ------------ Nothing Alien Tech Used ----------------- None Achievements -------------- None Challenges ------------ None Game ------ Seed GrapheneCatalystSpear Manual? 0 Play Time 03:08:42 Cumulative 331.5 hours Start 2023.03.24 @ 12:03:22 End 2023.03.24 @ 16:03:27 Sessions 1 Manual Loads 0 Difficulty Rogue Special Mode None Game No. 214 Rogue 191 Adventurer 6 Explorer 17 Win Type - Total 25 Types 17/0/4/1/0/1/1/1/0 Lore% 95 Gallery% 94 Achievement% 78 Wizard Run 0 Options --------- ASCII 0 Keyboard 0 Movement Numpad Keybinds 0 Fullscreen 1 Font 12/Fuzzy Map View 83x54 Tactical HUD 1 Map Filters NONE Filters NONE Steam 1 RUN: 20101e16-5bf6-4ea2-bd1a-01c1305a0470